bitfinex-derivatives/quotes_SOLF0:USTF0_20240920
["timestamp","ask_amount","ask_price","bid_price","bid_amount"]
[1726817630715,2.7286,150.14,150.06,25.64]
[1726817631313,3.3307,150.11,150.06,25.64]
[1726817632016,2.7286,150.14,150.06,25.64]
[1726817632719,3.3309,150.11,150.06,25.64]
[1726817633207,2.7286,150.14,150.08,3.3312]
[1726817633412,2.7286,150.14,150.06,25.64]
[1726817633816,3.3305,150.12,150.06,28.9716]
[1726817634018,2.7286,150.14,150.06,25.64]
[1726817634518,3.3309,150.1,150.06,25.64]
[1726817636419,2.7286,150.14,150.06,25.64]
[1726817637120,3.3312,150.09,150.06,25.64]
[1726817638221,2.7286,150.14,150.06,25.64]
[1726817638920,3.3313,150.09,150.06,25.64]
[1726817640025,3.3313,150.09,150.06,16.01]
[1726817641926,2.7286,150.14,150.08,16.01]
[1726817642321,2.7286,150.14,150.06,16.01]
[1726817642523,3.3313,150.09,150.06,16.01]
[1726817643027,3.3314,150.08,150.06,16.01]
[1726817645821,3.3316,150.07,150.04,4.64135613]
[1726817646023,16.01,150.1,150.01,133.32]
[1726817646226,1.3518,150.06,150.01,133.32]
[1726817646425,3.3327,150.02,150.01,133.32]
[1726817647322,1.3518,150.06,149.97,17.3456]
[1726817647323,17.3618,150.06,149.97,17.3456]
[1726817647627,1.3518,150.06,150.01,16.01]
[1726817647831,3.3324,150.04,150.02,3.38178916]
[1726817648127,1.3518,150.06,150.02,3.38178916]
[1726817649027,16.01,150.11,150.01,19.3428]
[1726817649226,1.3872,150.1,150.03,16.01]
[1726817649927,1.3872,150.1,150.03,19.38512094]
[1726817651225,3.3317,150.07,150.03,19.38512094]
[1726817651818,3.3318,150.06,150.03,16.01]
[1726817652024,1.3872,150.1,150.03,16.01]
[1726817652519,3.3318,150.06,150.04,3.3423324]
[1726817654822,3.332,150.05,150.04,3.3423324]
[1726817656528,14.0,150.01,149.73,16.6955]
[1726817656722,10.71168117,150.0,149.44,16.01]
[1726817656927,8.30592175,149.68,149.45,126.34]
[1726817657123,6.66565441,149.67,149.66,16.01]
[1726817657337,8.30592175,149.76,149.66,3.28685694]
[1726817657628,1.2923,149.98,149.72,16.01]
[1726817657825,1.2923,149.98,149.63,133.34]
[1726817657826,16.01,149.94,149.63,133.34]
[1726817658027,1.3574,149.96,149.68,15.98575674]
[1726817658226,25.62,149.9,149.73,20.78148376]
[1726817658427,25.62,149.87,149.74,154.12095144]
[1726817658626,1.3662,149.86,149.75,141.33267363]
[1726817658829,2.7236,149.86,149.75,133.34]
[1726817659936,2.7236,149.86,149.76,8.07005593]
[1726817660133,2.7236,149.86,149.77,8.07005593]
[1726817660334,3.3374,149.81,149.78,8.0697876]
[1726817660635,2.7236,149.86,149.75,133.34]
[1726817660835,2.7236,149.86,149.76,38.39945824]
[1726817661028,3.3372,149.82,149.77,21.70404161]
[1726817661226,3.3372,149.82,149.78,21.70404161]
[1726817661427,2.7236,149.86,149.79,21.70404161]
[1726817661637,2.7236,149.86,149.8,8.34770831]
[1726817661839,2.7236,149.86,149.81,8.34770831]
[1726817662030,2.7236,149.86,149.75,133.34]
[1726817662031,3.3375,149.81,149.75,133.34]
[1726817662230,2.7236,149.86,149.76,21.70588014]
[1726817662436,2.7236,149.86,149.77,21.70588014]
[1726817662634,2.7236,149.86,149.78,21.70588014]
[1726817662836,3.3376,149.8,149.79,8.34841544]
[1726817663036,2.7236,149.86,149.79,8.34841544]
[1726817663231,2.7236,149.86,149.8,8.34841544]
[1726817663541,25.62,149.85,149.71,162.35567266]
[1726817663739,2.7236,149.86,149.74,25.62]
[1726817664040,2.7236,149.86,149.75,13.35939695]
[1726817664239,2.7236,149.86,149.76,13.35939695]
[1726817664544,2.7236,149.86,149.74,25.62]
[1726817664839,2.7236,149.86,149.75,13.35802251]
[1726817665035,3.3376,149.8,149.76,13.35802251]
[1726817665228,2.7236,149.86,149.77,13.35802251]
[1726817665434,2.7236,149.86,149.74,25.62]
[1726817665629,2.7236,149.86,149.75,13.35774778]
[1726817665836,3.3376,149.8,149.76,13.35774778]
[1726817666132,2.7236,149.86,149.77,13.35774778]
[1726817666332,2.7236,149.86,149.74,25.62]
[1726817666534,2.7236,149.86,149.75,13.35819007]
[1726817666736,2.7236,149.86,149.71,136.73567266]
[1726817666737,9.9761,150.36,149.85,76.86]
[1726817666942,567.0,150.53,150.02,25.62]
[1726817666943,1.04880882,150.32,150.02,25.62]
[1726817667130,5.98998132,150.32,150.03,38.39343606]
[1726817667333,25.62,150.26,150.04,38.39343606]
[1726817667535,20.0,150.26,150.06,8.34876407]
[1726817667739,20.0,150.26,150.07,13.35819007]
[1726817667740,25.62,150.24,150.07,13.35819007]
[1726817667940,133.48,150.23,150.09,41.58]
[1726817668135,134.7741,150.23,150.09,41.58]
[1726817668636,134.7741,150.23,150.1,13.32731769]
[1726817668840,134.7741,150.23,150.12,41.58]
[1726817669436,3.3289,150.19,150.12,41.58]
[1726817669636,134.7741,150.23,150.12,41.58]
[1726817670445,134.7741,150.23,150.1,41.58]
[1726817670943,134.7741,150.23,150.1,41.34818275]
[1726817671139,176.3541,150.23,150.07,41.58]
[1726817671537,3.3303,150.13,150.07,41.58]
[1726817671844,176.3541,150.23,150.07,41.58]
[1726817672239,3.3298,150.16,150.07,44.9115]
[1726817672437,176.3541,150.23,150.07,44.9115]
[1726817672642,176.3541,150.23,150.07,41.58]
[1726817673645,3.33,150.14,150.07,41.58]
[1726817673844,3.33,150.14,150.05,3.3319]
[1726817674042,3.33,150.14,150.06,18.63692482]
[1726817674240,3.33,150.14,150.07,12.81056312]
[1726817674440,3.33,150.14,150.06,5.8263617]
[1726817674642,3.33,150.14,150.07,41.58]
[1726817675443,3.33,150.14,150.08,8.00662144]
[1726817675646,3.33,150.14,150.09,8.00662144]
[1726817675846,3.33,150.14,150.1,8.00662144]
[1726817676042,3.33,150.14,150.07,41.58]
[1726817676242,3.33,150.14,150.08,8.00661497]
[1726817676443,3.33,150.14,150.09,8.00661497]
[1726817676646,3.33,150.14,150.1,8.00661497]
[1726817676847,3.33,150.14,150.07,41.58]
[1726817677042,3.33,150.14,150.08,8.00670517]
[1726817677242,41.58,150.21,150.09,8.00670517]
[1726817677243,3.3305,150.12,150.09,8.00670517]
[1726817677445,41.58,150.21,150.07,41.58]
[1726817677641,41.58,150.21,150.08,8.00702894]
[1726817677844,41.58,150.21,150.09,8.00702894]
[1726817678043,41.58,150.21,150.07,41.58]
[1726817678239,176.3541,150.23,150.09,41.58]
[1726817678649,3.3294,150.17,150.1,7.90822867]
[1726817678854,176.3541,150.23,150.09,41.58]
[1726817678855,42.8741,150.23,150.09,41.58]
[1726817679159,42.8741,150.23,150.1,7.90818392]
[1726817679354,42.8741,150.23,150.09,41.58]
[1726817679555,3.3299,150.15,150.1,7.90822668]
[1726817679755,3.3299,150.15,150.09,41.58]
[1726817680059,3.3299,150.15,150.1,7.90822855]
[1726817680260,3.3296,150.16,150.09,41.58]
[1726817680456,41.58,150.21,150.1,7.90819816]
[1726817680664,41.58,150.21,150.09,41.58]
[1726817680962,41.58,150.21,150.1,7.90819816]
[1726817681150,41.58,150.21,150.09,41.58]
[1726817681557,41.58,150.21,150.1,7.90822411]
[1726817681952,41.58,150.21,150.09,41.58]
[1726817682152,41.58,150.21,150.1,7.90824578]
[1726817682353,3.3301,150.14,150.11,7.90820161]
[1726817682557,3.3301,150.14,150.07,48.22907739]
[1726817682865,3.3301,150.14,150.08,7.90823589]
[1726817683063,3.3299,150.15,150.09,49.48823589]
[1726817683264,3.3299,150.15,150.1,7.90823589]
[1726817683460,3.3299,150.15,150.09,41.58]
[1726817683655,3.3299,150.15,150.1,7.90825369]
[1726817683862,3.3299,150.15,150.09,41.58]
[1726817684155,3.3299,150.15,150.1,7.90825388]
[1726817684361,3.3299,150.15,150.09,41.58]
[1726817684561,3.33,150.14,150.1,7.90825992]
[1726817684765,3.33,150.14,150.09,41.58]
[1726817685268,3.33,150.14,150.1,7.90825992]
[1726817685569,41.58,150.21,150.07,44.89767739]
[1726817685767,41.58,150.21,150.08,7.90843025]
[1726817685969,3.3303,150.13,150.09,7.90843025]
[1726817686163,3.3303,150.13,150.1,7.90843025]
[1726817686362,3.3303,150.13,150.07,48.22927739]
[1726817686566,3.3303,150.13,150.08,7.90842254]
[1726817686767,3.3303,150.13,150.09,7.90842254]
[1726817687069,3.3303,150.13,150.1,7.90842254]
[1726817687362,3.3303,150.13,150.07,48.22927739]
[1726817687562,3.3303,150.13,150.08,7.90829839]
[1726817687763,3.3303,150.13,150.09,7.90829839]
[1726817687955,3.3303,150.13,150.1,7.90829839]
[1726817688157,25.59,150.18,150.07,3.31767739]
[1726817688369,25.59,150.13,150.08,7.90824171]
[1726817688667,25.59,150.13,150.01,28.86358742]
[1726817688871,3.3315,150.08,150.02,21.82311707]
[1726817689059,3.3315,150.08,150.03,12.65532055]
[1726817689362,25.59,150.13,150.04,7.9096137]
[1726817689666,1.3899,150.12,150.05,7.9096137]
[1726817689870,3.3318,150.07,150.02,12.64902192]
[1726817690064,1.3899,150.12,150.03,7.90563868]
[1726817690368,3.3319,150.06,150.04,7.90563868]
[1726817690665,3.3319,150.06,150.05,7.90563868]
[1726817691863,3.3319,150.06,150.01,3.27358742]
[1726817692161,3.3319,150.06,150.0,3.3329]
[1726817692465,3.3319,150.06,150.01,26.39234903]
[1726817692659,3.3319,150.06,150.02,23.90862545]
[1726817692860,25.59,150.11,150.03,7.90579715]
[1726817693067,25.59,150.11,150.04,7.90579715]
[1726817693267,3.332,150.06,150.0,18.48721825]
[1726817693568,3.332,150.06,149.99,3.3331]
[1726817693569,25.59,150.11,150.01,20.55576503]
[1726817693769,25.59,150.09,150.02,7.90607488]
[1726817693966,25.59,150.09,149.95,41.40213761]
[1726817693967,25.59,150.09,149.96,34.30137419]
[1726817694170,25.59,150.09,149.97,26.39608179]
[1726817694366,3.3325,150.03,149.98,5.83866185]
[1726817694567,3.3325,150.03,149.99,7.64989931]
[1726817694768,3.3325,150.03,149.98,5.83957621]
[1726817694968,3.3325,150.03,149.99,7.64992755]
[1726817695167,3.3325,150.03,149.98,5.83955876]
[1726817695366,3.3325,150.03,149.98,3.3335]
[1726817695566,1.3585,150.1,150.0,25.59]
[1726817695765,1.3585,150.1,150.01,13.4895078]
[1726817695965,1.3585,150.1,150.02,7.64991443]
[1726817696166,1.3585,150.1,150.0,25.59]
[1726817696469,3.3314,150.08,150.02,3.3326]
[1726817696768,1.3585,150.1,150.02,3.3326]
[1726817697766,3.3316,150.07,150.02,3.3326]
[1726817698569,1.3585,150.1,150.0,25.59]
[1726817698769,1.3585,150.1,150.01,7.64913246]
[1726817699067,1.3585,150.1,150.0,25.59]
[1726817699268,3.3316,150.07,150.02,10.98162463]
[1726817699571,1.3585,150.1,150.01,5.83981127]
[1726817699766,3.3317,150.07,150.02,7.6490661]
[1726817699966,3.3317,150.07,150.01,5.83981331]
[1726817700167,3.3317,150.07,150.02,7.649067]
[1726817700367,3.3317,150.07,150.0,25.59]
[1726817700567,3.3317,150.07,150.01,7.6366639]
[1726817700768,3.3317,150.07,150.02,10.9692639]
[1726817700969,3.3318,150.06,150.0,25.59]
[1726817701271,1.3585,150.1,149.98,12.23859941]
[1726817701466,1.3585,150.1,149.99,3.3333]
[1726817701773,2.7557,150.1,149.99,33.22743336]
[1726817701970,2.7557,150.1,150.0,7.63743336]
[1726817702169,2.7557,150.1,149.99,25.59]
[1726817702368,3.3319,150.06,150.01,3.3329]
[1726817702970,3.3315,150.08,150.03,3.3323]
[1726817703170,1.3585,150.1,150.04,25.59]
[1726817703570,3.3311,150.09,150.04,28.9221]
[1726817704476,3.3314,150.08,150.04,3.3321]
[1726817705263,1.3585,150.1,150.01,25.59]
[1726817705880,3.3313,150.09,150.04,3.3322]
[1726817707276,1.3585,150.1,149.99,25.59]
[1726817707666,3.3319,150.06,150.01,3.3329]
[1726817707871,1.3585,150.1,150.01,3.3329]
[1726817708077,1.3585,150.1,149.99,25.59]
[1726817708569,25.59,150.09,149.98,12.23859941]
[1726817708872,3.3324,150.04,149.99,3.3332]
[1726817709072,3.3324,150.04,149.97,3.37010865]
[1726817709273,3.3324,150.04,149.96,25.59]
[1726817710169,3.3321,150.05,149.96,25.59]
[1726817710374,3.3321,150.05,150.0,3.3329]
[1726817710575,3.3321,150.05,150.01,3.32410988]
[1726817710779,3.3318,150.06,150.01,3.32410988]
[1726817710979,1.3585,150.1,150.01,3.3329]
[1726817711176,1.3585,150.1,150.03,25.59]
[1726817711375,1.3899,150.12,150.03,25.59]
[1726817711878,3.3312,150.09,150.05,3.332]
[1726817713779,1.273,150.15,150.06,25.59]
[1726817714179,3.3308,150.11,150.06,25.59]
[1726817714881,3.331,150.1,150.06,25.59]
[1726817715381,3.3308,150.11,150.06,28.9216]
[1726817715776,1.273,150.15,150.06,25.59]
[1726817716082,3.3303,150.13,150.08,3.3312]
[1726817716383,1.273,150.15,150.08,3.3312]
[1726817716778,3.3305,150.12,150.08,3.3312]
[1726817717481,3.3303,150.13,150.08,3.3312]
[1726817717778,1.273,150.15,150.08,3.3312]
[1726817718083,1.273,150.15,150.06,25.59]
[1726817718479,25.59,150.24,150.11,25.59]
[1726817718680,2.7316,150.23,150.14,25.59]
[1726817718886,3.3285,150.21,150.16,25.59]
[1726817719185,1.396,150.24,150.14,25.59]
[1726817719381,2.6696,150.24,150.14,25.59]
[1726817719590,3.3291,150.19,150.14,28.92]
[1726817719784,2.6696,150.24,150.15,3.4103851]
[1726817720283,3.3291,150.19,150.15,3.4103851]
[1726817720986,3.3291,150.18,150.15,3.4103851]
[1726817721383,2.6696,150.24,150.14,28.92]
[1726817721578,3.329,150.19,150.14,32.17750233]
[1726817722689,2.6696,150.24,150.15,3.3296]
[1726817722986,2.6696,150.24,150.14,28.84750233]
[1726817723189,3.3286,150.21,150.16,3.3294]
[1726817723383,2.6696,150.24,150.14,28.84750233]
[1726817723776,2.6696,150.24,150.16,3.3294]
[1726817723981,2.6696,150.24,150.14,28.84750233]
[1726817724480,3.3289,150.2,150.15,3.3297]
[1726817724777,1.396,150.24,150.14,28.84750233]
[1726817724977,3.3286,150.21,150.16,3.3294]
[1726817725882,1.396,150.24,150.14,28.84750233]
[1726817726086,1.396,150.24,150.17,25.59]
[1726817726689,3.3282,150.22,150.17,25.59]
[1726817727394,3.3282,150.22,150.17,28.9192]
[1726817727989,3.3286,150.21,150.17,25.59]
[1726817728288,1.396,150.24,150.17,25.59]
[1726817728691,3.3283,150.22,150.17,28.9192]
[1726817729792,1.3797,150.25,150.17,25.59]
[1726817730296,3.3279,150.24,150.19,3.3287]
[1726817730993,3.3279,150.24,150.2,3.3286]
[1726817731691,3.3279,150.24,150.19,3.3288]
[1726817731892,1.3797,150.25,150.17,25.59]
[1726817732296,1.3797,150.25,150.2,3.3286]
[1726817732590,3.3279,150.24,150.2,3.3286]
[1726817733192,3.3279,150.24,150.19,3.3288]
[1726817734297,1.3797,150.25,150.17,25.59]
[1726817734496,1.3797,150.25,150.15,0.8825]
[1726817735497,1.3797,150.25,150.16,3.3294]
[1726817735694,1.3797,150.25,150.14,28.84750233]
[1726817735695,26.9485,150.24,150.14,3.25750233]
[1726817735897,3.3295,150.17,150.11,25.59]
[1726817736091,3.3295,150.17,150.12,3.3302]
[1726817736292,26.9485,150.24,150.12,3.28228477]
[1726817736494,25.59,150.22,150.09,25.59]
[1726817736801,1.3585,150.24,150.09,3.3309]
[1726817736802,25.59,150.19,150.09,3.3309]
[1726817738198,3.3296,150.16,150.11,3.3306]
[1726817738400,3.3296,150.16,150.12,3.34320962]
[1726817738903,3.3298,150.15,150.12,3.34320962]
[1726817739197,25.59,150.21,150.12,3.34320962]
[1726817739503,3.3297,150.16,150.11,3.3306]
[1726817739801,3.3297,150.16,150.11,6.6238474]
[1726817740703,3.3298,150.15,150.11,3.2932474]
[1726817740901,25.59,150.21,150.1,3.3308]
[1726817741103,3.3299,150.15,150.1,3.3308]
[1726817741500,25.59,150.21,150.11,3.3306]
[1726817741701,3.3297,150.16,150.11,6.71646087]
[1726817741901,25.59,150.21,150.11,3.3306]
[1726817742101,25.59,150.21,150.1,3.3308]
[1726817742800,25.59,150.17,150.06,133.2]
[1726817743002,4.0454,150.16,150.06,133.2]
[1726817743202,3.3308,150.11,150.06,133.2]
[1726817743400,3.3308,150.11,150.07,3.35087953]
[1726817743806,29.6354,150.16,150.04,3.3322]
[1726817744000,25.59,150.13,150.0,0.8819]
[1726817744200,25.59,150.11,150.0,4.2344453]
[1726817744405,25.59,150.11,150.0,4.2148]
[1726817744608,25.59,150.11,150.0,0.8819]
[1726817745007,25.59,150.11,150.0,4.2029]
[1726817745511,25.59,150.11,150.01,3.3327]
[1726817745913,3.3317,150.07,150.01,3.3327]
[1726817746204,25.59,150.11,150.01,3.3327]
[1726817746409,3.3317,150.07,150.01,3.3327]
[1726817746805,25.59,150.11,150.04,3.3321]
[1726817747006,25.59,150.13,150.04,3.3321]
[1726817747703,3.3313,150.09,150.04,3.3321]
[1726817747915,25.59,150.13,150.04,3.3321]
[1726817748312,3.3314,150.08,150.04,3.3321]
[1726817748508,25.59,150.13,150.03,3.3324]
[1726817749016,3.3315,150.08,150.03,3.3324]
[1726817749314,25.59,150.13,150.03,3.3324]
[1726817749509,3.3315,150.08,150.03,3.3324]
[1726817750812,25.59,150.11,150.0,3.321]
[1726817751011,25.59,150.11,149.98,25.59]
[1726817751516,25.59,150.11,150.02,3.3326]
[1726817752005,3.3317,150.07,150.02,3.3326]
[1726817752203,3.3317,150.07,150.03,3.3509982]
[1726817752403,25.59,150.11,150.03,3.3509982]
[1726817752615,25.59,150.11,149.98,25.59]
[1726817752812,25.59,150.11,149.98,28.9110012]
[1726817753116,3.3319,150.06,150.01,3.3327]
[1726817753812,3.3319,150.06,149.98,28.9110012]
[1726817753813,25.59,150.13,149.98,28.9110012]
[1726817754116,25.59,150.13,150.02,25.59]
[1726817754318,25.59,150.13,150.05,3.332]
[1726817754518,3.3311,150.1,150.05,3.332]
[1726817755106,3.3312,150.09,150.05,3.332]
[1726817756611,3.3312,150.09,150.04,3.3322]
[1726817757217,3.3312,150.09,150.02,25.59]
[1726817758515,3.3309,150.1,150.02,25.59]
[1726817758712,3.3309,150.1,150.05,3.3319]
[1726817758914,3.3309,150.1,150.06,3.26334733]
[1726817759212,25.59,150.13,150.06,3.26334733]
[1726817759407,29.6354,150.16,150.05,25.59]
[1726817759806,3.3305,150.12,150.05,25.59]
[1726817760615,3.3307,150.11,150.05,25.59]
[1726817760915,29.6354,150.16,150.05,25.59]
[1726817761115,29.6354,150.16,150.02,25.59]
[1726817761517,25.59,150.13,150.02,25.59]
[1726817762216,25.59,150.11,149.98,3.3210012]
[1726817762612,25.59,150.11,149.98,9.62599594]
[1726817762812,25.59,150.09,149.98,3.30834332]
[1726817763016,4.0879,150.08,149.97,158.89]
[1726817763516,4.0879,150.08,149.97,162.27464614]
[1726817763920,3.3316,150.07,150.02,3.3325]
[1726817764220,4.0879,150.08,149.97,162.27464614]
[1726817764617,4.0879,150.08,149.98,6.31838086]
[1726817764821,4.0879,150.08,150.0,25.59]
[1726817765017,4.0879,150.08,149.97,162.27464614]
[1726817765219,4.0879,150.08,149.98,6.31829294]
[1726817765416,3.3316,150.07,150.02,3.3325]
[1726817767021,3.3322,150.05,150.0,3.3331]
[1726817767325,4.0879,150.08,149.97,3.38464614]
[1726817767527,3.332,150.06,150.0,3.333]
[1726817767822,3.332,150.06,149.98,25.59]
[1726817768024,4.0879,150.08,150.02,3.3326]
[1726817768025,3.3316,150.07,150.02,3.3326]
[1726817769122,3.3319,150.06,150.01,3.3329]
[1726817769323,4.0879,150.08,150.01,3.3329]
[1726817770222,3.3318,150.06,150.01,3.3329]
[1726817770823,3.3316,150.07,150.02,3.3325]
[1726817771529,4.0879,150.08,149.96,3.40255323]
[1726817771730,4.0879,150.08,149.98,25.59]
[1726817771923,4.0879,150.08,149.98,28.93155527]
[1726817773024,3.332,150.05,150.0,3.333]
[1726817773225,29.6779,150.08,150.0,3.333]
[1726817773930,16.0,150.06,150.0,3.333]
[1726817774826,3.3322,150.05,150.0,3.333]
[1726817775333,16.0,150.06,149.99,3.3333]
[1726817775732,3.3324,150.04,149.99,3.3333]
[1726817776030,16.0,150.06,149.97,19.35322354]
[1726817776433,16.0,150.05,149.97,3.35322354]
[1726817776624,16.0,150.05,149.95,16.0]
[1726817777226,16.0,150.05,149.95,19.36022401]
[1726817777431,16.0,150.03,149.95,3.36022401]
[1726817777630,16.0,150.03,149.93,16.0]
[1726817777935,16.0,150.0,149.92,6.31995664]
[1726817778130,16.0,150.0,149.92,3.29521205]
[1726817778336,1.4078,149.99,149.91,149.34]
[1726817778630,4.7412,149.99,149.94,3.3344]
[1726817778836,1.4078,149.99,149.94,19.36823152]
[1726817779140,3.3324,150.04,149.99,3.3332]
[1726817779433,1.4078,150.07,150.0,3.30988263]
[1726817779737,1.4078,150.07,149.98,16.0]
[1726817780034,3.3323,150.04,149.98,16.0]
[1726817780535,3.3323,150.04,149.99,3.3332]
[1726817780736,3.3323,150.04,150.0,3.33855648]
[1726817781332,3.3325,150.03,150.0,3.33855648]
[1726817781534,1.4078,150.07,150.0,3.33855648]
[1726817781941,3.3325,150.03,150.0,3.33855648]
[1726817782240,25.6,150.06,149.92,25.6]
[1726817782538,3.3327,150.02,149.92,25.6]
[1726817782739,3.3327,150.02,149.97,3.3337]
[1726817783334,1.4078,150.07,149.99,3.3333]
[1726817783640,1.4078,150.07,150.0,3.28421409]
[1726817783842,3.3325,150.03,150.0,3.28421409]
[1726817784339,3.3325,150.03,149.98,3.3335]
[1726817784743,3.3327,150.02,149.99,3.25175881]
[1726817784937,1.4078,150.07,149.97,3.3338]
[1726817785138,1.4078,150.07,149.93,6.24758903]
[1726817785339,3.3331,150.01,149.92,25.6]
[1726817785544,1.4078,150.07,149.92,25.6]
[1726817785938,1.4078,150.07,149.95,3.3341]
[1726817786140,1.4078,150.07,149.92,25.6]
[1726817786335,3.3331,150.01,149.92,25.6]
[1726817786532,1.4078,150.07,149.95,3.334]
[1726817786746,1.4078,150.07,149.92,25.6]
[1726817787140,25.6,150.04,149.92,25.6]
[1726817787443,25.6,150.04,149.91,3.3528941]
[1726817787645,25.6,150.04,149.93,3.3345]
[1726817787944,25.6,150.01,149.9,25.6]
[1726817788142,3.3342,149.96,149.91,3.3349]
[1726817788638,4.0872,150.0,149.9,3.35667376]
[1726817788842,4.0872,150.0,149.89,133.36]
[1726817789346,3.334,149.97,149.92,3.3348]
[1726817789841,4.0872,150.0,149.89,136.62731362]
[1726817790045,25.6,149.99,149.89,136.62731362]
[1726817791046,25.6,149.99,149.9,3.3352]
[1726817791441,25.6,149.99,149.89,136.62731362]
[1726817791643,3.3343,149.95,149.9,3.3353]
[1726817791840,25.6,149.96,149.84,110.51029555]
[1726817792045,25.6,149.94,149.84,110.51029555]
[1726817792346,1.3376,149.93,149.84,110.51029555]
[1726817792538,3.3355,149.9,149.85,6.5929122]
[1726817793945,3.3356,149.89,149.85,6.5929122]
[1726817794247,3.3356,149.89,149.85,3.2565122]
[1726817796247,3.3356,149.89,149.85,6.5929122]
[1726817796846,3.3354,149.9,149.85,6.5929122]
[1726817797446,2.6557,149.92,149.85,3.2565122]
[1726817797652,1.3119,149.92,149.84,136.11029555]
[1726817798152,3.3352,149.91,149.84,139.40025681]
[1726817798354,1.3119,149.92,149.84,139.40025681]
[1726817798749,3.3355,149.9,149.85,3.3363]
[1726817799052,1.3119,149.92,149.84,113.80025681]
[1726817799356,3.3356,149.89,149.84,117.13675681]
[1726817800653,3.3354,149.9,149.84,113.80025681]
[1726817800855,1.3119,149.92,149.84,113.80025681]
[1726817801756,3.3351,149.91,149.86,3.3362]
[1726817803859,3.3354,149.9,149.85,3.3364]
[1726817804559,3.3356,149.89,149.85,3.3364]
[1726817805158,3.3356,149.89,149.84,117.13685681]
[1726817805356,3.3356,149.89,149.84,113.80025681]
[1726817805561,3.3354,149.9,149.84,113.80025681]
[1726817806060,3.3354,149.9,149.85,3.3364]
[1726817806261,3.3356,149.89,149.85,3.3364]
[1726817806761,3.3356,149.89,149.84,113.80025681]
[1726817806762,17.3219,149.92,149.86,3.3362]
[1726817807354,3.3355,149.9,149.85,3.3364]
[1726817808163,16.01,149.9,149.84,117.13685681]
[1726817808663,3.3359,149.88,149.84,113.80025681]
[1726817809763,3.3359,149.88,149.84,117.13675681]
[1726817810463,16.01,149.9,149.84,113.80025681]
[1726817810665,16.01,149.9,149.84,117.13685681]
[1726817810865,3.3359,149.88,149.84,117.13685681]
[1726817811867,3.3359,149.88,149.84,113.80025681]
[1726817812863,16.01,149.9,149.84,113.80025681]
[1726817813568,3.336,149.88,149.84,113.80025681]
[1726817813762,16.01,149.9,149.84,113.80025681]
[1726817814164,3.3362,149.87,149.84,113.80025681]
[1726817814869,16.01,149.9,149.84,110.51029555]
[1726817815066,16.01,149.89,149.84,110.51029555]
[1726817815369,3.3365,149.85,149.81,6.63793105]
[1726817815564,16.01,149.89,149.81,3.30063105]
[1726817815862,16.01,149.89,149.8,0.8836]
[1726817816263,16.01,149.89,149.8,3.34868706]
[1726817816466,16.01,149.85,149.76,1.7334]
[1726817817172,3.3369,149.83,149.78,3.3379]
[1726817817471,3.3369,149.83,149.78,6.70294165]
[1726817817767,3.3369,149.83,149.78,3.338]
[1726817818169,3.3369,149.83,149.78,6.6933624]
[1726817819873,16.01,149.85,149.78,3.32932782]
[1726817820567,16.01,149.83,149.74,151.2229]
[1726817821074,16.01,149.85,149.74,151.2229]
[1726817821375,16.01,149.87,149.78,16.01]
[1726817821572,16.01,149.87,149.78,19.32029927]
[1726817822273,3.3365,149.85,149.8,3.3375]